lending/lending_fUSD_20260411
["ID","MTS","AMOUNT","RATE_DAILY","PERIOD"]
[420274121,1775901260274,295.01,8.524e-05,2]
[420274122,1775901260304,204.99,8.524e-05,2]
[420274123,1775901260373,500.0,8.524e-05,2]
[420274124,1775901260412,500.0,8.524e-05,2]
[420274125,1775901260457,500.0,8.524e-05,2]
[420274126,1775901260499,500.0,8.524e-05,2]
[420274127,1775901260541,500.0,8.524e-05,2]
[420274128,1775901260581,500.0,8.524e-05,2]
[420274129,1775901260624,500.0,8.524e-05,2]
[420274130,1775901260666,500.0,8.524e-05,2]
[420274131,1775901260720,500.0,8.524e-05,2]
[420274132,1775901260793,500.0,8.524e-05,2]
[420274133,1775901260877,500.0,8.524e-05,2]
[420274134,1775901261299,500.0,8.524e-05,2]
[420274135,1775901261356,500.0,8.524e-05,2]
[420274136,1775901269836,-2223.02,8.525e-05,2]
[420274137,1775901269925,-10000.01,8.525e-05,2]
[420274138,1775901270384,-10000.01,8.525e-05,2]
[420274139,1775901270586,-10000.01,8.525e-05,2]
[420274140,1775901270667,-10000.01,8.525e-05,2]
[420274141,1775901272287,-10000.01,8.525e-05,2]
[420274142,1775901298931,10000.01,8.425e-05,2]
[420274143,1775901298959,92562.8435,8.425e-05,2]
[420274144,1775901312979,1205.0,8.425e-05,3]
[420274145,1775901313078,157.0,8.425e-05,3]
[420274146,1775901321345,166.0,8.425e-05,3]
[420274148,1775901365595,1145.0,8.425e-05,3]
[420274149,1775901380881,154.0,8.425e-05,3]
[420274150,1775901396398,1000.0,8.498e-05,2]
[420274151,1775901396621,1000.0,8.367e-05,2]
[420274152,1775901396674,1000.0,8.356e-05,2]
[420274153,1775901396720,1000.0,8.308e-05,2]
[420274154,1775901409106,152.0,8.453e-05,2]
[420274155,1775901409754,152.0,8.453e-05,2]
[420274156,1775901410484,152.0,8.456e-05,2]
[420274157,1775901411166,152.0,8.456e-05,2]
[420274158,1775901411868,152.0,8.456e-05,2]
[420274159,1775901413570,152.0,8.456e-05,2]
[420274160,1775901413680,152.0,8.458e-05,2]
[420274161,1775901414424,152.0,8.458e-05,2]
[420274162,1775901414750,152.0,8.458e-05,2]
[420274163,1775901415364,152.0,8.458e-05,2]
[420274164,1775901416116,152.0,8.458e-05,2]
[420274165,1775901455894,1000.0,8.451e-05,2]
[420274166,1775901456091,1000.0,8.45e-05,2]
[420274167,1775901466663,8000.01,8.424e-05,2]
[420274168,1775901466715,50730.8558,8.424e-05,2]
[420274169,1775901487075,1087.0,8.424e-05,3]
[420274170,1775901511598,7248.73000354,8e-05,2]
[420274172,1775901547335,1033.0,8e-05,3]
[420274173,1775901563374,153.0,5.098e-05,2]
[420274174,1775901563662,152.0,5.098e-05,2]
[420274175,1775901563953,152.0,5.098e-05,2]
[420274176,1775901577808,1000.0,8.47e-05,2]
[420274177,1775901577864,200.0,8.446e-05,2]
[420274178,1775901586795,800.0,8.463e-05,2]
[420274179,1775901607133,157.0,5.098e-05,3]
[420274180,1775901607361,157.0,7.211e-05,3]
[420274181,1775901607453,981.0,5.098e-05,3]
[420274183,1775901609271,981.0,5.988e-05,3]
[420274184,1775901609451,724.01,6.877e-05,3]
[420274185,1775901609490,256.99,6.877e-05,3]
[420274186,1775901610072,981.0,7.767e-05,3]
[420274187,1775901624550,1518.55,8.493e-05,2]
[420274188,1775901636450,2243.47,8.424e-05,2]
[420274189,1775901636488,5000.01,8.424e-05,2]
[420274190,1775901636529,2756.53,8.424e-05,2]
[420274193,1775901656158,659.95,7.721e-05,2]
[420274198,1775901672780,785.0,8.446e-05,3]
[420274201,1775901702283,154.0,8.446e-05,3]
[420274202,1775901706016,394.22987732,7.888e-05,2]
[420274205,1775901741304,746.0,8.446e-05,3]
[420274208,1775901752013,-8260.13072239,8.52e-05,2]
[420274209,1775901752058,-601.3376128,8.52e-05,2]
[420274210,1775901752111,-174.61919141,8.52e-05,2]
[420274211,1775901752223,-200.0,8.52e-05,2]
[420274212,1775901752321,-300.0,8.521e-05,2]
[420274213,1775901752404,-1200.0,8.522e-05,2]
[420274214,1775901752460,-300.0,8.522e-05,2]
[420274215,1775901752517,-408.99999997,8.522e-05,2]
[420274216,1775901752569,-8339.40038747,8.522e-05,2]
[420274217,1775901752653,-272.0,8.522e-05,2]
[420274218,1775901752703,-250.0,8.523e-05,2]
[420274219,1775901752754,-174.61919142,8.523e-05,2]
[420274220,1775901752788,-500.0,8.523e-05,2]
[420274221,1775901752825,-150.0,8.523e-05,2]
[420274222,1775901752857,-774.2301018,8.523e-05,2]
[420274223,1775901752885,-5000.0,8.523e-05,2]
[420274224,1775901752914,-1650.0,8.523e-05,2]
[420274225,1775901752956,-500.0,8.524e-05,2]
[420274226,1775901752998,-500.0,8.524e-05,2]
[420274227,1775901753043,-500.0,8.524e-05,2]
[420274228,1775901753087,-500.0,8.524e-05,2]
[420274229,1775901753145,-500.0,8.524e-05,2]
[420274230,1775901753203,-500.0,8.524e-05,2]
[420274231,1775901753250,-500.0,8.524e-05,2]
[420274232,1775901753297,-500.0,8.524e-05,2]
[420274233,1775901753336,-500.0,8.524e-05,2]
[420274234,1775901753387,-500.0,8.524e-05,2]
[420274235,1775901753433,-500.0,8.524e-05,2]
[420274236,1775901753475,-500.0,8.524e-05,2]
[420274237,1775901753521,-500.0,8.524e-05,2]
[420274238,1775901753575,-500.0,8.524e-05,2]
[420274239,1775901753630,-500.0,8.524e-05,2]
[420274240,1775901753686,-500.0,8.524e-05,2]
[420274241,1775901753738,-500.0,8.524e-05,2]
[420274242,1775901753780,-175.64347379,8.524e-05,2]
[420274243,1775901753829,-500.0,8.524e-05,2]
[420274244,1775901753876,-500.0,8.524e-05,2]
[420274245,1775901753924,-500.0,8.524e-05,2]
[420274246,1775901753970,-500.0,8.524e-05,2]
[420274247,1775901754015,-500.0,8.524e-05,2]
[420274248,1775901754059,-500.0,8.524e-05,2]
[420274249,1775901754103,-500.0,8.524e-05,2]
[420274250,1775901754147,-500.0,8.524e-05,2]
[420274251,1775901754187,-500.0,8.524e-05,2]
[420274252,1775901754221,-500.0,8.524e-05,2]
[420274253,1775901754257,-500.0,8.524e-05,2]
[420274254,1775901754291,-500.0,8.524e-05,2]
[420274255,1775901754321,-500.0,8.524e-05,2]
[420274256,1775901754358,-500.0,8.524e-05,2]
[420274257,1775901754393,-500.0,8.524e-05,2]
[420274258,1775901754435,-500.0,8.524e-05,2]
[420274259,1775901754481,-500.0,8.524e-05,2]
[420274260,1775901754526,-500.0,8.524e-05,2]
[420274261,1775901754583,-500.0,8.524e-05,2]
[420274262,1775901754645,-500.0,8.524e-05,2]
[420274263,1775901754689,-500.0,8.524e-05,2]
[420274264,1775901754734,-500.0,8.524e-05,2]
[420274265,1775901754787,-500.0,8.524e-05,2]
[420274266,1775901754859,-500.0,8.524e-05,2]
[420274267,1775901754911,-500.0,8.524e-05,2]
[420274268,1775901754955,-500.0,8.524e-05,2]
[420274269,1775901754995,-500.0,8.524e-05,2]
[420274270,1775901755033,-500.0,8.524e-05,2]
[420274271,1775901755064,-500.0,8.524e-05,2]
[420274272,1775901755101,-500.0,8.524e-05,2]
[420274273,1775901755134,-230.2132862,8.524e-05,2]
[420274274,1775901755186,-500.0,8.524e-05,2]
[420274275,1775901755223,-500.0,8.524e-05,2]
[420274276,1775901755270,-500.0,8.524e-05,2]
[420274277,1775901755346,-500.0,8.524e-05,2]
[420274278,1775901756000,-500.0,8.524e-05,2]
[420274279,1775901756040,-414.34903725,8.524e-05,2]
[420274280,1775901756078,-500.0,8.524e-05,2]
[420274281,1775901756121,-500.0,8.524e-05,2]
[420274282,1775901756171,-500.0,8.524e-05,2]
[420274283,1775901756233,-500.0,8.524e-05,2]
[420274284,1775901756287,-300.0,8.524e-05,2]
[420274285,1775901756329,-500.0,8.524e-05,2]
[420274286,1775901756380,-244.05507027,8.524e-05,2]
[420274287,1775901756424,-500.0,8.524e-05,2]
[420274288,1775901756469,-500.0,8.524e-05,2]
[420274289,1775901756499,-500.0,8.524e-05,2]
[420274290,1775901756577,-500.0,8.524e-05,2]
[420274291,1775901756607,-500.0,8.524e-05,2]
[420274292,1775901756641,-500.0,8.524e-05,2]
[420274293,1775901756678,-500.0,8.524e-05,2]
[420274294,1775901756710,-156.15536403,8.524e-05,2]
[420274295,1775901756748,-500.0,8.524e-05,2]
[420274296,1775901756782,-500.0,8.524e-05,2]
[420274297,1775901756818,-500.0,8.524e-05,2]
[420274298,1775901756856,-600.88229368,8.524e-05,2]
[420274299,1775901756894,-500.0,8.524e-05,2]
[420274300,1775901756935,-500.0,8.524e-05,2]
[420274301,1775901756984,-500.0,8.524e-05,2]
[420274302,1775901757039,-500.0,8.524e-05,2]
[420274303,1775901757084,-500.0,8.524e-05,2]
[420274304,1775901757133,-500.0,8.524e-05,2]
[420274305,1775901757182,-428.03522177,8.524e-05,2]
[420274306,1775901757229,-500.0,8.524e-05,2]
[420274307,1775901757269,-609.09277529,8.524e-05,2]
[420274308,1775901757326,-1233.03,8.524e-05,2]
[420274309,1775901757373,-4897.90089623,8.524e-05,2]
[420274310,1775901757428,-578.20924308,8.525e-05,2]
[420274311,1775901757470,-1235.18214925,8.525e-05,2]
[420274312,1775901757505,-743.50770149,8.525e-05,2]
[420274313,1775901757541,-151.0,8.525e-05,2]
[420274314,1775901757577,-181.08010149,8.525e-05,2]
[420274315,1775901757612,-478.60625802,8.525e-05,2]
[420274316,1775901757646,-21312.7199209,8.525e-05,2]
[420274317,1775901764488,507.21109954,6.454e-05,2]
[420274319,1775901789790,3184.596097,7.945e-05,2]
[420274320,1775901823330,273.09,8.219e-05,2]
[420274321,1775901844882,-1116.0,8.512e-05,2]
[420274322,1775901844918,-272.0,8.512e-05,2]
[420274323,1775901844954,-1108.01,8.512e-05,2]
[420274324,1775901845036,-7.99,8.512e-05,2]
[420274325,1775901845081,-1116.0,8.512e-05,2]
[420274326,1775901845468,1116.0,8.512e-05,2]
[420274327,1775901850067,1116.0,8.512e-05,2]
[420274328,1775901856939,520.03,8.512e-05,2]
[420274329,1775901857010,601.43472785,8.512e-05,2]
[420274330,1775901868268,709.0,8.512e-05,3]
[420274331,1775901875927,1000.0,8.492e-05,2]
[420274332,1775901910946,673.0,8.492e-05,3]
[420274333,1775901916547,172.06,6.222e-05,2]
[420274334,1775901916668,172.06,7e-05,2]
[420274335,1775901916751,172.06,7.777e-05,2]
[420274336,1775901965488,640.0,8.492e-05,3]
[420274337,1775901997768,1000.0,8.445e-05,2]
[420274338,1775901997853,1000.0,8.473e-05,2]
[420274339,1775901997913,1000.0,8.456e-05,2]
[420274340,1775901999885,152.0,8.418e-05,2]
[420274341,1775902000618,152.0,8.421e-05,2]
[420274342,1775902026992,608.0,8.492e-05,3]
[420274343,1775902030710,154.0,8.492e-05,3]
[420274344,1775902085329,577.0,8.492e-05,3]
[420274345,1775902118338,430.05,7.615e-05,2]
[420274346,1775902147670,548.0,8.492e-05,3]
[420274350,1775902164846,1517.57,7.6e-05,2]
[420274351,1775902176402,1000.0,8.376e-05,2]
[420274352,1775902205629,157.0,8.492e-05,3]
[420274353,1775902207924,547.0,8.492e-05,3]
[420274355,1775902231648,-272.0,8.519e-05,2]
[420274356,1775902231657,-1023.79975787,8.52e-05,2]
[420274357,1775902231702,-3783.6083788,8.52e-05,2]
[420274358,1775902231712,-250.0,8.521e-05,2]
[420274359,1775902231732,-150.0,8.521e-05,2]
[420274360,1775902231745,-1200.0,8.522e-05,2]
[420274361,1775902231754,-578.20924308,8.523e-05,2]
[420274362,1775902231775,-500.0,8.523e-05,2]
[420274363,1775902231795,-375.95712587,8.523e-05,2]
[420274364,1775902231825,-702.61518715,8.523e-05,2]
[420274365,1775902231835,-300.0,8.523e-05,2]
[420274366,1775902231856,-300.0,8.523e-05,2]
[420274367,1775902231869,-300.0,8.524e-05,2]
[420274368,1775902231879,-11738.1092791,8.525e-05,2]
[420274369,1775902231906,-239.72611938,8.54e-05,2]
[420274370,1775902231915,-1000.0,8.541e-05,2]
[420274371,1775902231926,-172.06,8.555e-05,2]
[420274372,1775902231940,-674.59707704,8.556e-05,2]
[420274373,1775902231953,-1000.0,8.569e-05,2]
[420274374,1775902231966,-525.40292296,8.569e-05,2]
[420274375,1775902231981,-702.61518714,8.572e-05,2]
[420274376,1775902231990,-500.0,8.573e-05,2]
[420274377,1775902232019,-500.0,8.573e-05,2]
[420274378,1775902232032,-500.0,8.573e-05,2]
[420274379,1775902232041,-500.0,8.573e-05,2]
[420274380,1775902232069,-500.0,8.573e-05,2]
[420274381,1775902232078,-500.0,8.573e-05,2]
[420274382,1775902232095,-8260.13072239,8.573e-05,2]
[420274383,1775902232115,-151.0,8.573e-05,2]
[420274384,1775902232128,-174.61919141,8.573e-05,2]
[420274385,1775902232139,-1000.0,8.573e-05,2]
[420274386,1775902232166,-150.0,8.577e-05,2]
[420274387,1775902232176,-500.0,8.578e-05,2]
[420274388,1775902232187,-1571.96,8.578e-05,2]
[420274389,1775902232210,-4999.99,8.578e-05,2]
[420274390,1775902232225,-150.99,8.578e-05,2]
[420274391,1775902232235,-499.99,8.578e-05,2]
[420274392,1775902232246,-150.99,8.578e-05,2]
[420274393,1775902232256,-3300.39,8.578e-05,2]
[420274394,1775902232273,-9999.99,8.578e-05,2]
[420274395,1775902232283,-1000.0,8.587e-05,2]
[420274396,1775902232293,-212.70544858,8.594e-05,2]
[420274397,1775902232302,-304.89500781,8.594e-05,2]
[420274399,1775902232318,-184.01726267,8.594e-05,2]
[420274401,1775902232327,-500.0,8.594e-05,2]
[420274403,1775902232336,-500.0,8.594e-05,2]
[420274405,1775902232350,-500.0,8.594e-05,2]
[420274406,1775902232360,-500.0,8.594e-05,2]
[420274407,1775902232369,-500.0,8.594e-05,2]
[420274408,1775902232379,-500.0,8.594e-05,2]
[420274409,1775902232389,-598.23825271,8.594e-05,2]
[420274410,1775902232407,-500.0,8.594e-05,2]
[420274411,1775902232416,-500.0,8.594e-05,2]
[420274412,1775902232426,-500.0,8.594e-05,2]
[420274413,1775902232438,-500.0,8.594e-05,2]
[420274414,1775902232455,-500.0,8.594e-05,2]
[420274415,1775902232464,-500.0,8.594e-05,2]
[420274416,1775902232475,-500.0,8.594e-05,2]
[420274417,1775902232494,-376.43727505,8.594e-05,2]
[420274418,1775902232503,-500.0,8.594e-05,2]
[420274419,1775902232512,-500.0,8.594e-05,2]
[420274420,1775902232530,-474.17226875,8.594e-05,2]
[420274421,1775902232541,-537.50881634,8.594e-05,2]
[420274422,1775902232550,-500.0,8.594e-05,2]
[420274423,1775902232563,-500.0,8.594e-05,2]
[420274424,1775902232582,-381.70598224,8.594e-05,2]
[420274425,1775902232591,-500.0,8.594e-05,2]
[420274426,1775902232601,-500.0,8.594e-05,2]
[420274427,1775902232611,-500.0,8.594e-05,2]
[420274428,1775902232629,-500.0,8.594e-05,2]
[420274429,1775902232638,-500.0,8.594e-05,2]
[420274430,1775902232649,-200.0,8.594e-05,2]
[420274431,1775902232667,-500.0,8.594e-05,2]
[420274432,1775902232680,-500.0,8.594e-05,2]
[420274433,1775902232690,-59655.95096565,8.595e-05,2]
[420274434,1775902232775,-1510.31,8.595e-05,2]
[420274435,1775902232829,-938.55,8.595e-05,2]
[420274436,1775902232841,-68402.0,8.595e-05,2]
[420274476,1775902239933,-400.0,8.595e-05,2]
[420274477,1775902239946,-31064.22225168,8.595e-05,2]
[420274478,1775902239977,-1503.17647077,8.595e-05,2]
[420274479,1775902240023,-266619.98792539,8.595e-05,2]
[420274480,1775902241032,-2090.40897658,8.595e-05,2]
[420274487,1775902243019,-30.72002363,8.595e-05,2]
[420274495,1775902245785,-3086.70185402,8.595e-05,2]
[420274496,1775902245806,-2874.77645003,8.595e-05,2]
[420274499,1775902265313,1600.0,8.085e-05,2]
[420274500,1775902291115,10000.01,8.473e-05,2]
[420274501,1775902291173,10000.01,8.473e-05,2]
[420274502,1775902291209,10000.01,8.473e-05,2]
[420274503,1775902291245,4296.01,8.473e-05,2]
[420274504,1775902291290,5000.01,8.473e-05,2]
[420274505,1775902291335,5000.01,8.473e-05,2]
[420274506,1775902291395,5000.01,8.473e-05,2]
[420274507,1775902291442,5000.01,8.473e-05,2]
[420274508,1775902291475,5000.01,8.473e-05,2]
[420274509,1775902291510,5000.01,8.473e-05,2]
[420274510,1775902291567,66806.8453,8.473e-05,2]
[420274511,1775902308733,1000.0,8.504e-05,2]
[420274512,1775902327764,520.0,8.504e-05,3]
[420274513,1775902343595,154.0,8.504e-05,3]
[420274514,1775902344650,9326.01,7.822e-05,2]
[420274515,1775902344679,10000.01,7.822e-05,2]
[420274516,1775902344719,10000.01,7.822e-05,2]
[420274517,1775902344747,10000.01,7.822e-05,2]
[420274518,1775902344781,6012.31717799,7.822e-05,2]
[420274519,1775902344849,34236.10282201,7.822e-05,2]
[420274521,1775902373780,500.0,7.808e-05,2]
[420274522,1775902386863,494.0,7.808e-05,3]
[420274523,1775902408175,4657.95,8.219e-05,2]
[420274524,1775902416632,1000.0,8.371e-05,2]
[420274525,1775902437389,200.0,8.2e-05,2]
[420274526,1775902448810,528.0,8.2e-05,3]
[420274527,1775902450041,9472.01,8.473e-05,2]
[420274528,1775902450071,10000.01,8.473e-05,2]
[420274529,1775902450101,10000.01,8.473e-05,2]
[420274530,1775902450138,4800.01,8.473e-05,2]
[420274531,1775902450172,5000.01,8.473e-05,2]
[420274532,1775902450210,34898.8652,8.473e-05,2]
[420274533,1775902463970,152.0,5.092e-05,2]
[420274534,1775902472597,3182.56317461,8.473e-05,2]
[420274535,1775902472729,1665.44682539,8.473e-05,2]
[420274536,1775902472760,1016.61294273,8.473e-05,2]
[420274537,1775902472810,1028.64961428,8.473e-05,2]
[420274538,1775902472854,844.22689705,8.473e-05,2]
[420274539,1775902508868,200.0,8.1e-05,2]
[420274540,1775902509189,1910.52054594,7.945e-05,2]
[420274541,1775902509227,742.11228006,7.945e-05,2]
[420274542,1775902511979,736.0,8.473e-05,3]
[420274543,1775902512066,157.0,8.473e-05,3]
[420274544,1775902521448,166.0,8.473e-05,3]
[420274545,1775902542003,192.73,0.0001621,120]
[420274547,1775902565447,752.0,8.473e-05,3]
[420274548,1775902596397,150.0,8.462e-05,2]
[420274549,1775902596512,150.0,8.441e-05,2]
[420274550,1775902600778,152.0,8.343e-05,2]
[420274551,1775902625659,714.0,8.473e-05,3]
[420274552,1775902632211,160.86,8.519e-05,2]
[420274553,1775902662086,154.0,8.473e-05,3]
[420274554,1775902687865,679.0,8.473e-05,3]
[420274555,1775902746897,645.0,8.473e-05,3]
[420274556,1775902809915,157.0,8.473e-05,3]
[420274557,1775902810236,200.0,7.617e-05,2]
[420274558,1775902927580,612.0,8.473e-05,3]
[420274559,1775902952725,-1000.0,8.529e-05,2]
[420274560,1775902952833,-272.0,8.529e-05,2]
[420274561,1775902952929,-578.20924308,8.529e-05,2]
[420274562,1775902953020,-500.0,8.529e-05,2]
[420274563,1775902965872,2668.9931,8.495e-05,2]
[420274564,1775902968339,-150.0,8.533e-05,2]
[420274565,1775902968539,-200.0,8.534e-05,2]
[420274566,1775902968582,-234.20506238,8.534e-05,2]
[420274567,1775902968625,-150.0,8.534e-05,2]
[420274568,1775902968666,-234.20506238,8.564e-05,2]
[420274569,1775902968702,-300.0,8.567e-05,2]
[420274570,1775902968736,-300.0,8.567e-05,2]
[420274571,1775902968770,-300.0,8.568e-05,2]
[420274572,1775902968803,-1200.0,8.568e-05,2]
[420274573,1775902968836,-254.0,8.568e-05,2]
[420274574,1775902974316,-4145.79234502,8.569e-05,2]
[420274575,1775902974358,-10000.01,8.569e-05,2]
[420274576,1775902974445,-10000.01,8.569e-05,2]
[420274577,1775902974592,-4337.88263057,8.569e-05,2]
[420274578,1775902974617,-1324.24473886,8.569e-05,2]
[420274579,1775902974719,-273.0,8.569e-05,2]
[420274580,1775902974757,-502.17595542,8.573e-05,2]
[420274581,1775902974807,-500.0,8.573e-05,2]
[420274582,1775902974851,-500.0,8.573e-05,2]
[420274583,1775902974896,-500.0,8.584e-05,2]
[420274584,1775902975441,-1739.87927761,8.585e-05,2]
[420274585,1775902975521,-3709.77881155,8.585e-05,2]
[420274586,1775902975569,-2810.47263323,8.585e-05,2]
[420274587,1775902975611,-151.0,8.585e-05,2]
[420274588,1775902975650,-174.61919141,8.585e-05,2]
[420274589,1775902975691,-150.0,8.589e-05,2]
[420274590,1775902975735,-1235.18214925,8.59e-05,2]
[420274591,1775902975789,-200.0,8.59e-05,2]
[420274592,1775902976281,-743.50770149,8.59e-05,2]
[420274593,1775902976301,-151.0,8.592e-05,2]
[420274594,1775902976315,-234.20506238,8.594e-05,2]
[420274595,1775902976332,-153.12111207,8.594e-05,2]
[420274596,1775902976347,-500.0,8.594e-05,2]
[420274597,1775902976362,-500.0,8.594e-05,2]
[420274598,1775902976375,-500.0,8.594e-05,2]
[420274599,1775902976388,-500.0,8.594e-05,2]
[420274600,1775902976398,-257.02287256,8.594e-05,2]
[420274601,1775902976421,-242.97712744,8.594e-05,2]
[420274602,1775902976433,-500.0,8.594e-05,2]
[420274603,1775902976442,-231.40734076,8.594e-05,2]
[420274604,1775902976455,-500.0,8.594e-05,2]
[420274605,1775902976465,-500.0,8.594e-05,2]
[420274606,1775902976477,-500.0,8.594e-05,2]
[420274607,1775902976487,-336.08816503,8.594e-05,2]
[420274608,1775902976510,-151.0,8.594e-05,2]
[420274609,1775902976532,-12.91183497,8.594e-05,2]
[420274610,1775902976542,-161.70735644,8.594e-05,2]
[420274611,1775902976561,-150.0,8.594e-05,2]
[420274612,1775902976575,-188.29264356,8.594e-05,2]
[420274613,1775902976585,-500.0,8.594e-05,2]
[420274614,1775902976598,-500.0,8.594e-05,2]
[420274615,1775902976607,-46.88950569,8.594e-05,2]
[420274616,1775902976622,-200.0,8.594e-05,2]
[420274617,1775902976638,-253.11049431,8.594e-05,2]
[420274618,1775902976648,-304.35155791,8.594e-05,2]
[420274619,1775902977068,-195.64844209,8.594e-05,2]
[420274620,1775902977119,-500.0,8.594e-05,2]
[420274621,1775902977184,-500.0,8.594e-05,2]
[420274622,1775902977240,-331.92058813,8.594e-05,2]
[420274623,1775902977301,-500.0,8.594e-05,2]
[420274624,1775902977362,-500.0,8.594e-05,2]
[420274625,1775902977420,-500.0,8.594e-05,2]
[420274626,1775902977470,-300.0,8.594e-05,2]
[420274627,1775902977503,-263.50609253,8.594e-05,2]
[420274628,1775902977540,-500.0,8.594e-05,2]
[420274629,1775902977575,-500.0,8.594e-05,2]
[420274630,1775902977608,-317.8597545,8.594e-05,2]
[420274631,1775902977691,-182.1402455,8.594e-05,2]
[420274632,1775902977721,-367.19418756,8.594e-05,2]
[420274633,1775902977753,-500.0,8.594e-05,2]
[420274634,1775902977837,-0.02,8.595e-05,2]
[420274635,1775902978010,-0.04,8.595e-05,2]
[420274636,1775902978116,-182.0802455,8.595e-05,2]
[420274637,1775902978146,-7901.34113388,8.595e-05,2]
[420274638,1775902978169,-1916.50862062,8.595e-05,2]
[420274639,1775902978184,-431.86,8.595e-05,2]
[420274640,1775902978194,-7651.62137938,8.595e-05,2]
[420274641,1775902978216,-6466.80862062,8.595e-05,2]
[420274642,1775902978237,-3533.16137938,8.595e-05,2]
[420274643,1775902980152,-3533.18137938,8.595e-05,2]
[420274644,1775902980337,-2933.64724124,8.595e-05,2]
[420274645,1775902980508,-10000.01,8.595e-05,2]
[420274646,1775902980531,-10000.01,8.595e-05,2]
[420274647,1775902980653,-1970.82,8.595e-05,2]
[420274648,1775902980681,-6058.37,8.595e-05,2]
[420274649,1775902980770,-150.99,8.595e-05,2]
[420274650,1775902980826,-4698.04,8.595e-05,2]
[420274651,1775902980940,-301.95,8.595e-05,2]
[420274652,1775902981167,-538.23,8.595e-05,2]
[420274653,1775902981263,-8923.55,8.595e-05,2]
[420274654,1775902987686,632.0,8.473e-05,3]
[420274655,1775902987730,500.0,8.573e-05,2]
[420274656,1775902990831,154.0,8.473e-05,3]
[420274657,1775902998654,-0.02,8.595e-05,2]
[420274658,1775902998775,-8713.97,8.595e-05,2]
[420274659,1775902998922,-1286.0,8.595e-05,2]
[420274660,1775902998964,-1550.82,8.595e-05,2]
[420274661,1775903031766,273.0,8.595e-05,2]
[420274662,1775903039631,4053.37,8.061e-05,2]
[420274663,1775903039654,10000.01,8.061e-05,2]
[420274664,1775903039678,10000.01,8.061e-05,2]
[420274665,1775903039700,7516.95,8.061e-05,2]
[420274666,1775903047400,600.0,8.473e-05,3]
[420274667,1775903074980,500.0,8.594e-05,2]
[420274668,1775903075202,336.82303786,8.594e-05,2]
[420274669,1775903077491,1046.23696214,7.886e-05,2]
[420274670,1775903077533,453.76303786,7.886e-05,2]
[420274671,1775903080548,232.34441169,8.594e-05,2]
[420274672,1775903091631,500.0,8.594e-05,2]
[420274673,1775903091778,273.0,8.595e-05,2]
[420274674,1775903091879,500.0,8.594e-05,2]
[420274675,1775903091940,500.0,8.594e-05,2]
[420274676,1775903092118,183.44094988,8.594e-05,2]
[420274677,1775903101007,7357.46160057,8.534e-05,2]
[420274678,1775903102460,162.33,8.123e-05,2]
[420274679,1775903222277,486.6027,8.495e-05,2]
[420274680,1775903288702,914.55,8.219e-05,2]
[420274681,1775903318928,1000.0,8.311e-05,2]
[420274682,1775903318992,1000.0,8.452e-05,2]
[420274683,1775903388096,800.0,8.325e-05,2]
[420274707,1775903432174,-272.0,8.532e-05,2]
[420274708,1775903432187,-300.0,8.532e-05,2]
[420274709,1775903432197,-1200.0,8.532e-05,2]
[420274710,1775903432210,-300.0,8.532e-05,2]
[420274711,1775903432221,-184.45426477,8.533e-05,2]
[420274712,1775903432231,-162.64108818,8.533e-05,2]
[420274713,1775903432242,-500.0,8.533e-05,2]
[420274714,1775903432251,-528.40866492,8.533e-05,2]
[420274715,1775903432262,-500.0,8.533e-05,2]
[420274716,1775903432271,-500.0,8.533e-05,2]
[420274718,1775903432283,-500.0,8.533e-05,2]
[420274720,1775903432293,-157.0359313,8.533e-05,2]
[420274722,1775903432302,-150.0,8.533e-05,2]
[420274724,1775903432312,-9055.16578757,8.534e-05,2]
[420274727,1775903432337,-266.38014877,8.534e-05,2]
[420274807,1775903440147,-1620.0,8.534e-05,2]
[420274808,1775903440173,-1623.12580466,8.534e-05,2]